bitfinex/quotes_ETHUSD_20230701
["timestamp","ask_amount","ask_price","bid_price","bid_amount"]
[1688180063355,5.19726,1924.1,1923.8,5.89303382]
[1688180063564,5.19726,1924.1,1923.8,0.69503382]
[1688180067257,5.19726,1924.1,1923.8,0.1501962]
[1688180067468,15.68065184,1924.1,1923.8,0.1501962]
[1688180069472,2.68752184,1924.0,1923.8,0.1501962]
[1688180069648,12.99442,1923.9,1923.8,0.1501962]
[1688180070136,5.19777,1923.9,1923.8,0.1501962]
[1688180070930,10.39554,1923.9,1923.8,0.1501962]
[1688180071340,11.96372718,1923.9,1923.8,0.1501962]
[1688180080977,17.25012902,1923.9,1923.8,0.1501962]
[1688180083554,14.65124902,1923.9,1923.8,0.1501962]
[1688180084784,17.25012902,1923.9,1923.8,0.1501962]
[1688180085734,17.25012902,1923.9,1923.4,5.1639362]
[1688180085851,15.68194184,1923.9,1923.4,6.5169362]
[1688180086547,17.51994184,1923.9,1923.4,6.5169362]
[1688180090286,17.51994184,1923.9,1923.4,1.353]
[1688180090793,12.99612,1923.7,1923.3,0.1]
[1688180090975,15.68364184,1923.7,1923.3,0.1]
[1688180091186,17.41095602,1923.7,1923.3,0.1]
[1688180091555,18.45166802,1923.7,1923.3,1.7272]
[1688180091888,18.45166802,1923.7,1923.3,6.92654]
[1688180091889,18.45159802,1923.7,1923.3,6.92654]
[1688180092188,6.239162,1923.7,1923.3,12.12596]
[1688180092390,11.437612,1923.7,1923.3,6.92657]
[1688180093174,11.437612,1923.7,1923.3,1.7272]
[1688180094313,14.036762,1923.7,1923.3,1.7272]
[1688180095418,6.239162,1923.7,1923.3,1.7272]
[1688180095617,1.040712,1923.7,1923.5,1.34]
[1688180095789,5.19808,1923.8,1923.5,6.53867]
[1688180095997,10.39626,1923.8,1923.5,7.192537]
[1688180096308,5.19808,1923.8,1923.5,7.192537]
[1688180099021,10.39626,1923.8,1923.5,7.192537]
[1688180099498,10.39626,1923.8,1923.5,1.993867]
[1688180099682,13.08378184,1923.8,1923.5,1.34]
[1688180099886,13.08378184,1923.8,1923.3,1.7272]
[1688180099887,15.68280184,1923.8,1923.4,1.353]
[1688180102317,13.08378184,1923.8,1923.4,1.353]
[1688180103353,13.08378184,1923.8,1923.4,6.55212]
[1688180103854,6.65660183,1923.9,1923.4,13.099102]
[1688180104025,6.65660183,1923.9,1923.5,1.353]
[1688180104339,6.65660183,1923.9,1923.6,5.19855]
[1688180104556,6.65660183,1923.9,1923.5,6.55178]
[1688180104557,6.65660183,1923.9,1923.5,8.20478]
[1688180104849,6.65660183,1923.9,1923.5,6.86178]
[1688180105145,13.04158067,1923.9,1923.5,1.663]
[1688180106210,2.68752184,1923.8,1923.5,1.663]
[1688180106516,5.19831,1923.7,1923.5,1.663]
[1688180107336,5.19831,1923.7,1923.3,11.84553]
[1688180107537,10.39649,1923.8,1923.3,13.59063]
[1688180107725,10.39649,1923.8,1923.3,15.45696633]
[1688180108367,10.39649,1923.8,1923.4,1.343]
[1688180108530,5.1982,1923.8,1923.4,11.74115]
[1688180109068,11.85453183,1923.9,1923.4,11.74115]
[1688180109239,11.85453183,1923.9,1923.4,13.54637563]
[1688180109640,11.85453183,1923.9,1923.4,16.14593563]
[1688180110270,11.85453183,1923.9,1923.4,14.34071]
[1688180110572,6.65658183,1923.9,1923.4,14.34071]
[1688180110740,5.61602383,1923.9,1923.4,14.34071]
[1688180110942,10.81397383,1923.9,1923.4,14.34071]
[1688180111162,10.81397383,1923.9,1923.5,1.353]
[1688180111356,10.81397383,1923.9,1923.6,5.19853]
[1688180111567,5.61602383,1923.9,1923.6,5.19853]
[1688180112093,5.61602383,1923.9,1923.5,13.27522]
[1688180112269,13.41267383,1923.9,1923.5,9.663878]
[1688180112471,13.41267383,1923.9,1923.5,2.8777]
[1688180112647,13.41267383,1923.9,1923.5,1.5247]
[1688180115981,13.41267383,1923.9,1923.5,6.72354]
[1688180116688,5.61592383,1923.9,1923.5,6.72354]
[1688180116895,0.41815383,1923.9,1923.6,0.672354]
[1688180117187,11.45236055,1924.0,1923.6,13.668754]
[1688180117188,1.040504,1924.0,1923.6,13.668754]
[1688180117388,5.19724,1924.1,1923.6,13.668754]
[1688180117693,10.39448,1924.1,1923.7,9.6687554]
[1688180117859,10.39448,1924.1,1923.7,8.3157554]
[1688180118363,10.39448,1924.1,1923.7,13.5140654]
[1688180118577,5.19724,1924.1,1923.7,13.5140654]
[1688180119089,10.39447,1924.1,1923.7,8.3157554]
[1688180119390,10.39447,1924.1,1923.7,6.94888]
[1688180121587,15.68060184,1924.1,1923.5,8.48737]
[1688180121799,0.01645655,1924.0,1923.5,8.48737]
[1688180122091,10.39582,1923.9,1923.5,8.48755]
[1688180122418,10.41182655,1924.0,1923.5,16.28582]
[1688180122573,0.01645655,1924.0,1923.6,1.628582]
[1688180122785,11.84304896,1924.2,1923.7,10.39654]
[1688180123272,14.44152896,1924.2,1923.7,5.19826]
[1688180123829,14.44152896,1924.2,1923.6,12.12862]
[1688180124126,16.40607751,1924.2,1923.6,12.12862]
[1688180125626,16.40607751,1924.2,1923.6,6.93016]
[1688180128506,16.40607751,1924.2,1923.6,12.12874]
[1688180129696,6.237482,1924.2,1923.6,12.12874]
[1688180130005,5.197,1924.2,1923.9,1.353]
[1688180130358,5.197,1924.2,1923.9,5.19769]
[1688180130505,5.19681,1924.3,1923.9,5.19769]
[1688180130881,5.19709,1924.2,1923.9,5.19769]
[1688180131743,10.39418,1924.2,1923.9,5.19769]
[1688180131950,10.39418,1924.2,1923.6,1.347]
[1688180131951,16.82360734,1924.2,1923.6,1.347]
[1688180132100,18.92760734,1924.2,1923.5,1.9487]
[1688180132433,10.3956,1923.9,1923.4,6.54609]
[1688180132964,2.59885,1924.0,1923.3,5.29938]
[1688180132965,12.9959,1923.7,1923.3,5.29938]
[1688180133098,11.96506218,1923.7,1923.3,0.1]
[1688180133297,11.96506218,1923.7,1923.3,5.29933]
[1688180133529,5.19836,1923.7,1923.3,10.49872]
[1688180133729,10.3964,1923.8,1923.3,10.49872]
[1688180133930,12.99542,1923.8,1923.3,0.1]
[1688180134133,0.01645655,1923.7,1923.3,0.1]
[1688180134300,12.99657,1923.6,1923.3,0.1]
[1688180135436,5.19864,1923.6,1923.3,0.1]
[1688180135629,5.21485655,1923.7,1923.3,5.29936]
[1688180136718,5.1984,1923.7,1923.3,5.29936]
[1688180136918,10.39681,1923.7,1923.3,0.1]
[1688180137124,10.39681,1923.7,1923.3,1.285207]
[1688180137465,5.1984,1923.7,1923.3,6.484537]
[1688180137970,10.39571,1923.9,1923.4,6.55194]
[1688180138831,10.39571,1923.9,1923.4,8.20114]
[1688180139036,10.39571,1923.9,1923.4,13.40026]
[1688180139236,10.39571,1923.9,1923.4,14.8688067]
[1688180140551,12.99459,1923.9,1923.4,9.6696867]
[1688180140764,12.99459,1923.9,1923.4,3.0022]
[1688180141120,12.99459,1923.9,1923.3,1.447]
[1688180141317,17.24391184,1923.9,1923.3,0.1]
[1688180141733,0.2,1923.7,1923.3,0.1]
[1688180142027,10.39728,1923.6,1923.3,0.1]
[1688180144157,12.99657,1923.6,1923.3,0.1]
[1688180146335,14.576152,1923.6,1923.3,0.1]
[1688180149479,10.39728,1923.6,1923.3,0.1]
[1688180149848,5.19864,1923.6,1923.3,0.1]
[1688180151740,10.39728,1923.6,1923.3,0.1]
[1688180153970,5.19864,1923.6,1923.3,0.1]
[1688180160379,12.99651,1923.6,1923.3,0.1]
[1688180160581,1.299651,1923.5,1923.3,0.1]
[1688180160785,10.39824,1923.4,1923.3,0.1]
[1688180161579,5.19912,1923.4,1923.3,0.1]
[1688180161971,11.697671,1923.5,1923.3,0.1]
[1688180162988,6.498641,1923.5,1923.3,0.1]
[1688180163601,5.19899,1923.5,1923.3,0.1]
[1688180165759,10.39802,1923.5,1923.3,0.1]
[1688180166312,12.99744,1923.5,1923.3,0.1]
[1688180167203,13.01389655,1923.5,1923.3,0.1]
[1688180167556,10.41447655,1923.5,1923.3,0.1]
[1688180167887,1.04144766,1923.4,1923.3,0.1]
[1688180168098,6.24056766,1923.4,1923.3,0.1]
[1688180169315,11.43968766,1923.4,1923.3,0.1]
[1688180170263,5.19897,1923.5,1923.3,0.1]
[1688180170547,10.39798,1923.5,1923.3,0.1]
[1688180173050,12.9974,1923.5,1923.3,0.1]
[1688180175400,5.19897,1923.5,1923.3,0.1]
[1688180175809,5.19897,1923.5,1923.3,5.29939]
[1688180176014,10.39782,1923.5,1923.3,5.29939]
[1688180176806,10.39782,1923.5,1923.3,0.1]
[1688180177534,12.99724,1923.5,1923.3,0.1]
[1688180177915,10.39782,1923.5,1923.3,0.1]
[1688180178238,12.99724,1923.5,1923.3,0.1]
[1688180178609,10.39782,1923.5,1923.3,0.1]
[1688180178804,12.99724,1923.5,1923.3,0.1]
[1688180181040,14.556896,1923.5,1923.3,0.1]
[1688180182164,5.19873,1923.6,1923.3,0.1]
[1688180182445,10.39782,1923.5,1923.3,0.1]
[1688180184409,12.99724,1923.5,1923.3,0.1]
[1688180184956,10.39782,1923.5,1923.3,0.1]
[1688180185316,12.99724,1923.5,1923.3,0.1]
[1688180189027,10.39782,1923.5,1923.3,0.1]
[1688180202566,10.39782,1923.5,1923.3,5.29936]
[1688180202776,5.19885,1923.5,1923.3,5.29936]
[1688180202998,5.19885,1923.5,1923.3,0.1]
[1688180203180,10.3977,1923.5,1923.3,0.1]
[1688180204585,14.296819,1923.5,1923.3,0.1]
[1688180207005,6.498549,1923.5,1923.3,0.1]
[1688180207306,5.19885,1923.5,1923.3,0.1]
[1688180208809,10.3977,1923.5,1923.3,0.1]
[1688180210629,0.2,1923.7,1923.3,0.1]
[1688180210836,5.19858,1923.6,1923.3,5.29935]
[1688180211036,10.39716,1923.6,1923.3,0.1]
[1688180213856,10.39716,1923.6,1923.3,5.29937]
[1688180215753,10.39716,1923.6,1923.3,0.1]
[1688180218042,10.39716,1923.6,1923.3,5.29933]
[1688180218220,10.39716,1923.6,1923.3,0.1]
[1688180219727,10.39716,1923.6,1923.3,5.82934]
[1688180220948,10.39716,1923.6,1923.3,11.02873]
[1688180221860,10.39716,1923.6,1923.3,10.49878]
[1688180222059,10.39716,1923.6,1923.3,0.1]
[1688180222060,12.99645,1923.6,1923.3,0.1]
[1688180223527,10.39716,1923.6,1923.3,0.1]
[1688180226130,12.99645,1923.6,1923.3,0.1]
[1688180232252,15.68397184,1923.6,1923.3,0.1]
[1688180232459,1.56839718,1923.5,1923.3,0.1]
[1688180232766,5.19912,1923.4,1923.3,0.1]
[1688180233476,10.39824,1923.4,1923.3,0.1]
[1688180234558,12.9978,1923.4,1923.3,0.1]
[1688180242749,10.39824,1923.4,1923.3,0.1]
[1688180246471,10.39824,1923.4,1923.3,5.29939]
[1688180246472,5.19912,1923.4,1923.3,5.29939]
[1688180246655,5.19912,1923.4,1923.3,1.283899]
[1688180250579,10.39824,1923.4,1923.3,0.1]
[1688180252892,12.9978,1923.4,1923.3,0.1]
[1688180257785,10.39824,1923.4,1923.3,0.1]
[1688180257983,5.19912,1923.4,1923.3,0.1]
[1688180263704,10.39824,1923.4,1923.3,0.1]
[1688180266173,5.19912,1923.4,1923.3,0.1]
[1688180267699,10.39824,1923.4,1923.3,0.1]
[1688180269477,12.9978,1923.4,1923.3,0.1]
[1688180273118,14.29758,1923.4,1923.3,0.1]
[1688180275086,12.9978,1923.4,1923.3,0.1]
[1688180285924,5.19912,1923.4,1923.3,0.1]
[1688180286296,10.39824,1923.4,1923.3,0.1]
[1688180294734,12.9978,1923.4,1923.3,0.1]
[1688180295130,10.39824,1923.4,1923.3,0.1]
[1688180312550,10.39824,1923.4,1923.3,0.05]
[1688180318755,12.9978,1923.4,1923.3,0.05]
[1688180321356,12.9978,1923.4,1923.0,4.59389563]
[1688180321654,12.9978,1923.4,1923.1,1.353]
[1688180324255,12.9978,1923.4,1923.0,5.60829771]
[1688180325072,15.2341,1923.4,1923.0,4.58789563]
[1688180325237,15.2341,1923.4,1923.0,2.92549563]
[1688180325558,15.2341,1923.4,1923.0,1.57849563]
[1688180326582,1.353,1923.1,1923.0,1.3181842]
[1688180326743,25.32023184,1923.1,1922.5,0.1501962]
[1688180326929,2.53202318,1923.0,1922.5,5.3516562]
[1688180327123,6.86091,1923.2,1922.5,13.1539962]
[1688180327458,13.00006,1923.1,1922.6,11.75528]
[1688180327664,10.4001,1923.1,1922.6,13.41428]
[1688180327832,10.4001,1923.1,1922.7,6.542228]
[1688180328434,5.19997,1923.1,1922.7,6.542228]
[1688180328652,3.277173,1923.4,1922.7,14.43075984]
[1688180328854,10.39922,1923.3,1922.8,6.54061]
[1688180329065,12.99891,1923.3,1922.8,6.54061]
[1688180329225,12.99891,1923.3,1922.9,0.654061]
[1688180330141,12.99891,1923.3,1922.8,8.19955]
[1688180330342,12.99891,1923.3,1922.8,6.85955]
[1688180330757,12.99891,1923.3,1922.8,1.659]
[1688180331180,12.99891,1923.3,1922.8,6.85972]
[1688180331663,12.99891,1923.3,1922.8,12.06046]
[1688180331859,12.99891,1923.3,1922.9,1.206046]
[1688180334557,12.99891,1923.3,1922.8,1.659]
[1688180336067,10.39922,1923.3,1922.8,6.85972]
[1688180336366,10.39922,1923.3,1922.8,12.06046]
[1688180336953,5.19961,1923.3,1922.8,14.66083]
[1688180337167,12.99891,1923.3,1922.8,12.06046]
[1688180337362,12.99891,1923.3,1922.9,1.206046]
[1688180337531,12.99891,1923.3,1922.8,6.85972]
[1688180337862,12.99891,1923.3,1922.8,1.659]
[1688180338069,12.99891,1923.3,1922.8,6.85956]
[1688180338270,12.99891,1923.3,1922.8,12.0603]
[1688180338891,15.68643184,1923.3,1922.6,1.353]
[1688180339041,6.49014318,1923.2,1922.6,1.5873]
[1688180339233,10.40029,1923.1,1922.6,1.5873]
[1688180339787,10.40029,1923.1,1922.6,6.78856]
[1688180340841,10.40029,1923.1,1922.6,11.98984]
[1688180341362,13.98108,1923.2,1922.6,14.59048]
[1688180341562,13.98108,1923.2,1922.8,10.4013]
[1688180342372,13.98108,1923.2,1922.8,12.068]
[1688180342871,3.9527,1923.3,1922.8,12.06805]
[1688180342872,10.39909,1923.3,1922.8,12.06805]
[1688180343170,5.19954,1923.3,1922.8,14.66842]
[1688180343361,10.39913,1923.3,1922.9,1.466842]
[1688180343534,10.39913,1923.3,1923.0,5.20015]
[1688180344151,10.39913,1923.3,1922.9,10.40078]
[1688180344346,10.39913,1923.3,1922.9,5.20039]
[1688180347162,2.0891,1923.4,1922.9,13.00109]
[1688180347474,12.48736,1923.4,1922.9,13.00109]
[1688180347681,12.48736,1923.4,1922.9,14.602169]
[1688180348343,12.48736,1923.4,1922.9,12.001939]
[1688180348649,16.43992,1923.4,1922.8,1.6667]
[1688180351104,19.12744184,1923.4,1922.7,1.347]
[1688180351323,1.5975,1923.3,1922.6,4.9036]
[1688180351604,12.9999,1923.1,1922.6,4.9036]
[1688180351992,12.9999,1923.1,1922.6,7.59112184]
[1688180352206,10.39992,1923.1,1922.7,0.75911218]
[1688180352378,10.39992,1923.1,1922.7,5.96010218]
[1688180353291,5.19996,1923.1,1922.7,5.96010218]
[1688180353490,7.20333,1923.2,1922.7,11.16111218]
[1688180353696,7.20326,1923.2,1922.7,13.76161218]
[1688180353893,2.0036,1923.2,1922.8,1.37616122]
[1688180354109,2.0036,1923.2,1922.9,5.20042]
[1688180354278,7.20333,1923.2,1922.9,10.40089]
[1688180354805,7.20333,1923.2,1922.9,5.20042]
[1688180355902,2.0036,1923.2,1922.9,5.20042]
[1688180356114,2.0036,1923.2,1922.9,10.40089]
[1688180358192,5.19956,1923.3,1922.9,10.40089]
[1688180359622,10.39915,1923.3,1922.9,10.40089]
[1688180363955,0.01645655,1923.4,1922.9,14.75680484]
[1688180364155,1.040795,1923.5,1922.9,14.75680484]
[1688180364156,10.39755,1923.6,1923.0,2.68752184]
[1688180364323,5.19889,1923.5,1923.2,1.353]
[1688180364525,10.39778,1923.5,1923.2,11.574465]
[1688180364876,6.49698,1923.7,1923.2,14.174295]
[1688180364877,0.40980008,1923.6,1923.2,14.174295]
[1688180365019,10.59694,1923.7,1923.4,1.353]
[1688180365524,10.59694,1923.7,1923.4,6.55198]
[1688180365723,10.59694,1923.7,1923.3,5.19921]
[1688180365959,14.76051613,1923.7,1923.2,5.19948]
[1688180366135,16.41781613,1923.7,1923.2,5.19948]
[1688180366741,16.41781613,1923.7,1923.2,10.39895]
[1688180367031,16.41781613,1923.7,1923.2,5.19947]
[1688180367267,16.41781613,1923.7,1923.1,8.53066]
[1688180367566,16.41781613,1923.7,1923.1,7.575106]
[1688180367757,13.19609,1923.7,1923.1,14.10955784]
[1688180367955,13.19609,1923.7,1923.1,16.70951784]
[1688180368167,13.19609,1923.7,1923.2,2.68752184]
[1688180368323,13.19609,1923.7,1923.4,1.353]
[1688180368957,13.19609,1923.7,1923.3,1.353]
[1688180369170,13.19609,1923.7,1923.3,2.27700218]
[1688180369551,13.19609,1923.7,1923.2,4.04052184]
[1688180370270,13.19609,1923.7,1923.1,7.575166]
[1688180370465,14.82579,1923.7,1923.1,7.575166]
[1688180370664,14.82579,1923.7,1923.1,12.774956]
[1688180372665,14.84224655,1923.7,1923.1,12.774956]
[1688180372873,14.84224655,1923.7,1923.2,1.2774956]
[1688180373168,18.86976839,1923.7,1923.0,1.6928]
[1688180373482,18.86976839,1923.7,1922.9,13.55888]
[1688180373683,16.18224655,1923.7,1923.0,6.9054]
[1688180373987,18.8883052,1923.7,1923.0,8.171771]
[1688180374786,18.8883052,1923.7,1923.0,13.371971]
[1688180376975,21.57582704,1923.7,1923.0,5.2002]
[1688180377177,21.57582704,1923.7,1922.8,38.246]
[1688180377178,12.99767,1923.5,1922.8,38.246]
[1688180377337,12.99767,1923.5,1922.8,38.24597]
[1688180377537,12.99767,1923.5,1922.8,8.21597]
[1688180377760,10.39914,1923.3,1922.8,13.41671]
[1688180379082,10.39914,1923.3,1922.8,8.21597]
[1688180379401,12.99883,1923.3,1922.6,31.383]
[1688180379622,12.99883,1923.3,1922.6,35.0126]
[1688180379905,10.40023,1923.1,1922.6,40.21378]
[1688180380198,10.40023,1923.1,1922.6,10.18378]
[1688180380400,13.00019,1923.1,1922.6,10.18378]
[1688180380806,13.00019,1923.1,1922.6,1.353]
[1688180380971,13.00019,1923.1,1922.6,6.55427]
[1688180382405,5.20008,1923.1,1922.6,6.55427]
[1688180382618,1.54183096,1923.1,1922.6,11.75555]
[1688180382810,1.54183096,1923.1,1922.6,5.20127]
[1688180383105,10.4001,1923.1,1922.6,5.20127]
[1688180383307,13.00006,1923.1,1922.6,10.40255]
[1688180383811,13.00006,1923.1,1922.5,0.1501962]
[1688180383812,2.70397839,1923.0,1922.5,0.1501962]
[1688180383979,13.00152,1922.9,1922.5,0.1501962]
[1688180384190,10.40202,1922.7,1922.5,5.3516862]
[1688180384578,6.501032,1922.8,1922.5,5.3516862]
[1688180384782,5.20104,1922.7,1922.5,5.3516862]
[1688180385012,5.20104,1922.7,1922.5,10.5532462]
[1688180385237,10.4018,1922.8,1922.5,10.5532462]
[1688180385509,5.20088,1922.8,1922.5,10.5532462]
[1688180386395,5.20088,1922.8,1922.5,13.1540262]
[1688180386597,1.041065,1922.9,1922.6,2.68752184]
[1688180386796,7.11844,1923.3,1922.7,14.35552]
[1688180387020,5.19977,1923.2,1922.7,14.35552]
[1688180387335,5.19977,1923.2,1922.7,10.40202]
[1688180387336,10.39956,1923.2,1922.7,10.40202]
[1688180387506,1.039956,1923.1,1922.6,7.09443]
[1688180387701,11.440116,1923.1,1922.6,12.29566]
[1688180387901,14.040076,1923.1,1922.6,5.20123]
[1688180388414,1.05731655,1923.2,1922.7,2.68752184]
[1688180388618,10.39933,1923.2,1922.8,10.40135]
[1688180388799,5.19954,1923.3,1922.8,5.20061]
[1688180388995,10.41505655,1923.4,1922.8,5.20061]
[1688180389218,6.24090565,1923.3,1922.8,10.40135]
[1688180389420,6.24090565,1923.3,1922.8,5.20061]
[1688180389615,11.44030565,1923.3,1922.8,10.40135]
[1688180389914,18.08051749,1923.3,1922.7,5.20099]
[1688180390129,18.08051749,1923.3,1922.6,5.20112]
[1688180390297,13.00028,1923.1,1922.6,5.20112]
[1688180390822,13.00028,1923.1,1922.5,6.7045962]
[1688180391025,13.00028,1923.1,1922.5,0.1501962]
[1688180391026,4.353,1923.0,1922.5,0.1501962]
[1688180391191,13.00145,1922.9,1922.5,0.1501962]
[1688180391520,13.00145,1922.9,1922.5,5.3517262]
[1688180391720,13.00145,1922.9,1922.5,10.5532862]
[1688180392820,14.601595,1922.9,1922.5,10.5532862]
[1688180393124,14.601595,1922.9,1922.5,5.3517262]
[1688180396653,14.601595,1922.9,1922.5,10.5532862]
[1688180396857,14.601595,1922.9,1922.5,5.3517262]
[1688180397858,12.001365,1922.9,1922.5,10.5532862]
[1688180398045,14.601595,1922.9,1922.5,5.3517262]
[1688180398425,14.601595,1922.9,1922.5,5.3516362]
[1688180401556,14.601595,1922.9,1922.5,0.1501962]
[1688180401763,1.4601595,1922.8,1922.5,0.1501962]
[1688180402066,13.01897655,1922.7,1922.5,0.1501962]
[1688180406185,10.40202,1922.7,1922.5,0.1501962]
[1688180406569,5.20101,1922.7,1922.5,5.3517362]
[1688180406733,5.20101,1922.7,1922.5,0.1501962]
[1688180407128,5.20101,1922.7,1922.5,0.1001962]
[1688180407378,10.40202,1922.7,1922.5,0.1001962]
[1688180408778,13.00252,1922.7,1922.5,0.1001962]
[1688180411397,13.00252,1922.7,1922.5,13.1006962]
[1688180413490,13.00252,1922.7,1922.5,14.54606582]
[1688180414499,2.0139,1922.9,1922.5,30.23736766]
[1688180414500,5.20049,1922.9,1922.5,30.23736766]
[1688180414710,5.20051,1922.9,1922.7,1.353]
[1688180414850,10.40102,1922.9,1922.7,1.353]
[1688180415268,5.20051,1922.9,1922.7,1.353]
[1688180415754,10.40098,1922.9,1922.7,2.528539]
[1688180416107,5.20047,1922.9,1922.7,2.528539]
[1688180416491,10.40018,1923.1,1922.7,10.41707084]
[1688180416824,10.40018,1923.1,1922.8,1.343]
[1688180416825,10.40011,1923.1,1922.8,1.343]
[1688180417385,5.20004,1923.1,1922.8,6.54372]
[1688180417616,10.39963,1923.2,1922.9,0.654372]
[1688180417901,10.39963,1923.2,1922.9,2.007372]
[1688180418620,10.39969,1923.2,1922.9,2.007372]
[1688180418975,12.99952,1923.2,1922.9,1.353]
[1688180419200,12.99952,1923.2,1922.8,1.6587]
[1688180420403,5.1998,1923.2,1922.8,3.0117]
[1688180420606,5.19952,1923.3,1922.9,1.347]
[1688180420914,10.39954,1923.2,1922.9,6.54736]
[1688180421125,10.39954,1923.2,1923.0,0.654736]
[1688180421329,10.39954,1923.2,1922.9,1.347]
[1688180422191,10.39954,1923.2,1922.9,6.54745]
[1688180422524,10.39954,1923.2,1922.9,14.43544184]
[1688180422916,5.19977,1923.2,1922.9,14.43544184]
[1688180423277,10.39943,1923.2,1922.9,9.23497184]
[1688180423482,10.39943,1923.2,1923.0,0.92349718]
[1688180423782,10.39943,1923.2,1922.9,7.88797184]
[1688180425444,12.99926,1923.2,1922.8,1.6587]
[1688180425615,12.99926,1923.2,1922.8,4.34622184]
[1688180426560,12.99926,1923.2,1922.8,5.68622184]
[1688180426868,10.39943,1923.2,1922.9,0.56862218]
[1688180427031,10.39943,1923.2,1922.9,5.76898218]
[1688180428630,5.19966,1923.2,1922.9,13.65697402]
[1688180429520,5.19926,1923.4,1923.1,1.343]
[1688180429735,5.19926,1923.4,1923.1,1.74605218]
[1688180429736,5.19947,1923.3,1923.1,1.74605218]
[1688180430511,5.19947,1923.3,1923.1,4.43357402]
[1688180430749,5.19926,1923.4,1923.1,4.43357402]
[1688180430918,5.19951,1923.3,1923.1,4.43357402]
[1688180431245,5.19951,1923.3,1923.2,0.4433574]
[1688180431639,5.19939,1923.3,1923.1,4.03052184]
[1688180431831,5.19939,1923.3,1923.1,2.68752184]
[1688180432242,10.39878,1923.3,1923.0,3.5639]
[1688180432534,10.39878,1923.3,1923.0,1.8892]
[1688180432962,10.39878,1923.3,1922.9,7.12208218]
[1688180433165,10.39878,1923.3,1922.9,9.80960402]
[1688180433538,10.39878,1923.3,1923.0,1.34]
[1688180434454,10.39878,1923.3,1923.0,6.54016]
[1688180434649,10.39878,1923.3,1923.0,8.0398364]
[1688180435368,5.19939,1923.3,1923.0,8.0398364]
[1688180436067,10.39878,1923.3,1923.0,8.0398364]
[1688180436366,10.39878,1923.3,1923.0,6.54016]
[1688180437852,10.39878,1923.3,1923.0,18.20066]
[1688180438245,10.39878,1923.3,1923.0,13.0005]
[1688180438838,12.99847,1923.3,1923.0,13.0005]
[1688180439959,5.19939,1923.3,1923.0,13.0005]
[1688180440294,5.19939,1923.3,1923.0,14.820578]
[1688180440581,5.19939,1923.3,1923.0,20.020708]
[1688180442902,5.19939,1923.3,1923.0,18.20063]
[1688180447297,10.39878,1923.3,1923.0,18.20063]
[1688180449219,10.39878,1923.3,1923.0,13.0005]
[1688180451626,12.99847,1923.3,1923.0,13.0005]
[1688180451936,10.39878,1923.3,1923.0,15.68802184]
[1688180452130,10.39878,1923.3,1923.1,1.56880218]
[1688180452429,10.39878,1923.3,1923.0,15.68802184]
[1688180453717,12.99847,1923.3,1923.0,15.68802184]
[1688180457197,12.99847,1923.3,1923.0,13.0005]
[1688180457198,18.19786,1923.3,1923.0,13.0005]
[1688180457433,12.99982,1923.1,1923.0,13.0005]
[1688180458759,14.85979,1923.1,1923.0,13.0005]
[1688180459505,10.39986,1923.1,1923.0,13.0005]
[1688180459826,5.19993,1923.1,1923.0,13.0005]
[1688180460449,10.39986,1923.1,1923.0,13.0005]
[1688180462153,12.99982,1923.1,1923.0,13.0005]
[1688180463141,14.25182,1923.1,1923.0,13.0005]
[1688180463342,15.936987,1923.1,1923.0,13.0005]
[1688180466746,3.037167,1923.1,1923.0,13.0005]
[1688180466907,9.15189,1923.1,1923.0,13.0005]
[1688180467107,14.35182,1923.1,1923.0,13.0005]
[1688180471058,20.03934184,1923.1,1923.0,13.0005]
[1688180473257,17.35182,1923.1,1923.0,13.0005]
[1688180473654,15.99982,1923.1,1923.0,13.0005]
[1688180474681,16.42078012,1923.1,1923.0,13.0005]
[1688180475457,13.39986,1923.1,1923.0,13.0005]
[1688180475661,15.99982,1923.1,1923.0,13.0005]
[1688180482777,10.39986,1923.1,1923.0,14.30055]
[1688180483976,12.99982,1923.1,1923.0,14.30055]
[1688180487392,12.99982,1923.1,1923.0,13.0005]
[1688180492499,5.19981,1923.2,1923.0,13.0005]
[1688180492681,5.19993,1923.1,1923.0,13.0005]
[1688180492876,10.39986,1923.1,1923.0,13.0005]
[1688180493288,12.99982,1923.1,1923.0,13.0005]
[1688180496278,12.99982,1923.1,1923.0,14.30055]
[1688180498380,12.99982,1923.1,1923.0,13.0005]
[1688180527780,5.19991,1923.2,1923.0,15.68802184]
[1688180528083,10.39986,1923.1,1923.0,15.68802184]
[1688180529303,12.99982,1923.1,1923.0,13.0005]
[1688180558320,20.03934184,1923.1,1923.0,7.43315]
[1688180558638,23.90564862,1923.1,1922.5,0.1001962]
[1688180558779,31.20365,1922.9,1922.5,0.1001962]
[1688180559232,15.60302,1922.7,1922.5,0.1001962]
[1688180571159,16.01504067,1922.7,1922.5,0.1001962]
[1688180572154,3.0,1922.6,1922.5,0.1001962]
[1688180572450,18.30815625,1922.6,1922.5,0.1001962]
[1688180573316,16.0032,1922.6,1922.5,0.1001962]
[1688180578949,16.0032,1922.6,1922.3,0.1]
[1688180594844,18.69072184,1922.6,1922.3,0.1]
[1688180598237,16.0032,1922.6,1922.3,0.1]
[1688180605582,16.0032,1922.6,1922.2,0.1]
[1688180605583,2.68752184,1922.5,1922.2,0.1]
[1688180605754,18.60548,1922.4,1922.2,0.1]
[1688180605954,21.29300184,1922.4,1922.2,0.1]
[1688180618306,21.71327218,1922.4,1922.2,0.1]
[1688180623779,19.02575034,1922.4,1922.2,0.1]
[1688180626411,22.13035303,1922.4,1922.2,0.1]